bitfinex/quotes_BTCUSD_20250105
["timestamp","ask_amount","ask_price","bid_price","bid_amount"]
[1736064919580,0.00549475,97953.0,97952.0,0.0824071]
[1736064919740,0.00749475,97953.0,97952.0,0.0824071]
[1736064919936,0.00249475,97953.0,97952.0,0.0824071]
[1736064921146,0.00049475,97953.0,97952.0,0.0824071]
[1736064921341,0.00249475,97953.0,97952.0,0.0824071]
[1736064921548,0.00749475,97953.0,97952.0,0.0824071]
[1736064922577,0.00749475,97953.0,97952.0,0.0766854]
[1736064922905,0.00749475,97953.0,97952.0,0.0824071]
[1736064923433,0.00749475,97953.0,97952.0,0.0766854]
[1736064924172,0.00549475,97953.0,97952.0,0.0766854]
[1736064924551,0.00249475,97953.0,97952.0,0.0766854]
[1736064924751,0.00749475,97953.0,97952.0,0.0766854]
[1736064925304,0.02637928,97953.0,97952.0,0.0766854]
[1736064927673,0.02437928,97953.0,97952.0,0.0766854]
[1736064927998,0.02137928,97953.0,97952.0,0.0766854]
[1736064928583,0.02637928,97953.0,97952.0,0.0766854]
[1736064928901,0.02437928,97953.0,97952.0,0.0766854]
[1736064929246,0.02137928,97953.0,97952.0,0.0766854]
[1736064929363,0.02637928,97953.0,97952.0,0.0766854]
[1736064930135,0.02637928,97953.0,97952.0,8.54e-05]
[1736064930473,0.02437928,97953.0,97952.0,8.54e-05]
[1736064930942,0.02637928,97953.0,97952.0,8.54e-05]
[1736064931172,0.02637928,97953.0,97952.0,0.0805854]
[1736064931405,0.02137928,97953.0,97952.0,0.0805854]
[1736064931617,0.02137928,97953.0,97952.0,0.08630654]
[1736064931785,0.02437928,97953.0,97952.0,0.08630654]
[1736064931992,0.01937928,97953.0,97952.0,0.08630654]
[1736064932365,0.02037928,97953.0,97952.0,0.08630654]
[1736064932576,0.02537928,97953.0,97952.0,0.08630654]
[1736064933634,0.02437928,97953.0,97952.0,0.08630654]
[1736064934045,0.02537928,97953.0,97952.0,0.08630654]
[1736064934452,0.02037928,97953.0,97952.0,0.08630654]
[1736064934654,0.02437928,97953.0,97952.0,0.08630654]
[1736064935269,0.02337928,97953.0,97952.0,0.08630654]
[1736064935477,0.02437928,97953.0,97952.0,0.08630654]
[1736064936087,0.02437928,97953.0,97952.0,0.0805854]
[1736064936299,0.02837928,97953.0,97952.0,0.0805854]
[1736064936704,0.02737928,97953.0,97952.0,0.0805854]
[1736064936964,0.02737928,97953.0,97952.0,0.08630654]
[1736064937140,0.02837928,97953.0,97952.0,0.08630654]
[1736064937732,0.01937928,97953.0,97952.0,0.08630654]
[1736064937932,0.02337928,97953.0,97952.0,0.08630654]
[1736064938575,0.02837928,97953.0,97952.0,0.08630654]
[1736064939162,0.02837928,97953.0,97952.0,0.13270654]
[1736064940378,0.02737928,97953.0,97952.0,0.13270654]
[1736064940760,0.02037928,97953.0,97952.0,0.13270654]
[1736064940962,0.02337928,97953.0,97952.0,0.13270654]
[1736064945744,0.02337928,97953.0,97952.0,0.23771377]
[1736064945943,0.02337928,97953.0,97952.0,0.23669286]
[1736064946204,0.00449475,97953.0,97952.0,0.23669286]
[1736064946616,0.00349475,97953.0,97952.0,0.23669286]
[1736064946822,0.00449475,97953.0,97952.0,0.23669286]
[1736064947235,0.00149475,97953.0,97952.0,0.23669286]
[1736064947443,0.00249475,97953.0,97952.0,0.23669286]
[1736064948251,0.00049475,97953.0,97952.0,0.23669286]
[1736064948451,0.00049475,97953.0,97952.0,0.24169286]
[1736064949023,0.00049475,97953.0,97952.0,0.13770654]
[1736064949894,0.00049475,97953.0,97952.0,0.13570654]
[1736064950342,0.00049475,97953.0,97952.0,0.13470654]
[1736064950545,0.00049475,97953.0,97952.0,0.13770654]
[1736064952862,0.00049475,97953.0,97952.0,0.13570654]
[1736064953063,0.00049475,97953.0,97952.0,0.13670654]
[1736064953713,0.00049475,97953.0,97952.0,0.13570654]
[1736064953916,0.00049475,97953.0,97952.0,0.13270654]
[1736064954745,0.00049475,97953.0,97952.0,0.13370654]
[1736064956044,0.00049475,97953.0,97952.0,0.13270654]
[1736064956289,0.00049475,97953.0,97952.0,0.13370654]
[1736064957285,0.00049475,97953.0,97952.0,0.13270654]
[1736064957586,0.00049475,97953.0,97952.0,0.13370654]
[1736064959120,0.00049475,97953.0,97952.0,0.13270654]
[1736064959520,0.00049475,97953.0,97952.0,0.13370654]
[1736064959976,0.00049475,97953.0,97952.0,0.13270654]
[1736064960185,0.00049475,97953.0,97952.0,0.13370654]
[1736064963235,0.00049475,97953.0,97952.0,0.13270654]
[1736064963662,0.00049475,97953.0,97952.0,0.13370654]
[1736064964942,0.00045475,97953.0,97952.0,0.13370654]
[1736064965370,0.00045475,97953.0,97952.0,0.13599111]
[1736064968569,0.00045475,97953.0,97952.0,0.63599111]
[1736064969921,0.00045475,97953.0,97952.0,0.63499111]
[1736064970574,0.00045475,97953.0,97952.0,0.63599111]
[1736064974051,0.00045475,97953.0,97952.0,0.63499111]
[1736064974457,0.00045475,97953.0,97952.0,0.63599111]
[1736064975672,0.00045475,97953.0,97952.0,0.63499111]
[1736064978167,0.00045475,97953.0,97952.0,0.83917211]
[1736064978307,0.00045475,97953.0,97952.0,0.94315843]
[1736064978752,0.00045475,97953.0,97952.0,0.50909111]
[1736064978753,0.20463375,97953.0,97952.0,0.50909111]
[1736064979157,0.20463375,97953.0,97952.0,0.58869111]
[1736064979701,0.22360398,97953.0,97952.0,0.58669111]
[1736064979837,0.01942498,97953.0,97952.0,0.58669111]
[1736064980045,0.01942498,97953.0,97952.0,0.58769111]
[1736064981033,0.01942498,97953.0,97952.0,0.58869111]
[1736064981419,0.01942498,97953.0,97952.0,0.50909111]
[1736064981621,0.00045475,97953.0,97952.0,0.51009111]
[1736064981814,0.01942453,97953.0,97952.0,0.50909111]
[1736064982189,0.01942453,97953.0,97952.0,0.51009111]
[1736064982398,0.01942453,97953.0,97952.0,0.50909111]
[1736064982797,0.02542453,97953.0,97952.0,0.50809111]
[1736064983006,0.02742453,97953.0,97952.0,0.50809111]
[1736064983573,0.02542453,97953.0,97952.0,0.50809111]
[1736064983786,0.02742453,97953.0,97952.0,0.50809111]
[1736064984689,0.02142453,97953.0,97952.0,0.50809111]
[1736064984918,0.02842453,97953.0,97952.0,0.50909111]
[1736064985113,0.02642453,97953.0,97952.0,0.50909111]
[1736064985327,0.02642453,97953.0,97952.0,0.50809111]
[1736064985534,0.02842453,97953.0,97952.0,0.50809111]
[1736064985734,0.03459553,97953.0,97952.0,0.50809111]
[1736064985960,0.02559553,97953.0,97952.0,0.50809111]
[1736064986381,0.03459553,97953.0,97952.0,0.50909111]
[1736064986542,0.02159553,97953.0,97952.0,0.50809111]
[1736064986767,0.01959553,97953.0,97952.0,0.50809111]
[1736064987063,0.02159553,97953.0,97952.0,0.50809111]
[1736064987916,0.02759553,97953.0,97952.0,0.50809111]
[1736064988342,0.02559553,97953.0,97952.0,0.50809111]
[1736064988768,0.02759553,97953.0,97952.0,0.50809111]
[1736064989348,0.02559553,97953.0,97952.0,0.50809111]
[1736064989549,0.02159553,97953.0,97952.0,0.50809111]
[1736064989933,0.03204553,97953.0,97952.0,0.50809111]
[1736064990140,0.02759553,97953.0,97952.0,0.50809111]
[1736064990563,0.02759553,97953.0,97952.0,0.50782538]
[1736064992463,0.01959553,97953.0,97952.0,0.50782538]
[1736064992668,0.02159553,97953.0,97952.0,0.50782538]
[1736064992875,0.02759553,97953.0,97952.0,0.50782538]
[1736064994805,0.02559553,97953.0,97952.0,0.50782538]
[1736064994997,0.02759553,97953.0,97952.0,0.50782538]
[1736064995431,0.02159553,97953.0,97952.0,0.50782538]
[1736064995548,0.02759553,97953.0,97952.0,0.50782538]
[1736064997459,0.02759553,97953.0,97952.0,0.50791088]
[1736064998207,0.02559553,97953.0,97952.0,0.50791088]
[1736064998410,0.01959553,97953.0,97952.0,0.50791088]
[1736064998641,0.02559553,97953.0,97952.0,0.50791088]
[1736064999137,0.01959553,97953.0,97952.0,0.50791088]
[1736064999386,0.02559553,97953.0,97952.0,0.50791088]
[1736064999620,0.02059553,97953.0,97952.0,0.50791088]
[1736065000010,0.02559553,97953.0,97952.0,0.50791088]
[1736065002040,0.02459553,97953.0,97952.0,0.50791088]
[1736065002380,0.02059553,97953.0,97952.0,0.50791088]
[1736065002624,0.02559553,97953.0,97952.0,0.50791088]
[1736065003406,0.02059553,97953.0,97952.0,0.50791088]
[1736065003879,0.01959553,97953.0,97952.0,0.50791088]
[1736065004108,0.02059553,97953.0,97952.0,0.50791088]
[1736065004743,0.01959553,97953.0,97952.0,0.50791088]
[1736065004949,0.02059553,97953.0,97952.0,0.50791088]
[1736065005389,0.02559553,97953.0,97952.0,0.50791088]
[1736065005578,0.02059553,97953.0,97952.0,0.50791088]
[1736065005991,0.02559553,97953.0,97952.0,0.50791088]
[1736065006141,0.02059553,97953.0,97952.0,0.50791088]
[1736065006550,0.02459553,97953.0,97952.0,0.50791088]
[1736065007034,0.02359553,97953.0,97952.0,0.50791088]
[1736065007189,0.02459553,97953.0,97952.0,0.50791088]
[1736065009938,0.02059553,97953.0,97952.0,0.50791088]
[1736065010093,0.02459553,97953.0,97952.0,0.50791088]
[1736065010552,0.02359553,97953.0,97952.0,0.50791088]
[1736065010750,0.02459553,97953.0,97952.0,0.50791088]
[1736065012471,0.23256817,97953.0,97952.0,0.50791088]
[1736065013320,0.27858185,97953.0,97952.0,0.50791088]
[1736065014149,0.38268185,97953.0,97952.0,0.50791088]
[1736065014590,0.71448273,97953.0,97952.0,0.50791088]
[1736065014993,0.70948273,97953.0,97952.0,0.50791088]
[1736065015426,0.71148273,97953.0,97952.0,0.50791088]
[1736065015862,0.71748273,97953.0,97952.0,0.50791088]
[1736065016062,0.71148273,97953.0,97952.0,0.50791088]
[1736065016471,0.72048273,97953.0,97952.0,0.50891088]
[1736065016672,0.71848273,97953.0,97952.0,0.50891088]
[1736065017028,0.72248273,97953.0,97952.0,0.50891088]
[1736065017230,0.74277965,97953.0,97952.0,0.50891088]
[1736065017432,0.51849641,97953.0,97952.0,0.50891088]
[1736065018318,0.50549641,97953.0,97952.0,0.50791088]
[1736065018525,0.51449641,97953.0,97952.0,0.50891088]
[1736065018739,0.18259553,97953.0,97952.0,0.00891088]
[1736065018943,0.18259553,97953.0,97952.0,0.00791088]
[1736065019116,0.19159553,97953.0,97952.0,0.0010855]
[1736065019324,0.18259553,97953.0,97952.0,8.55e-05]
[1736065019552,0.17359553,97953.0,97952.0,8.55e-05]
[1736065019732,0.18259553,97953.0,97952.0,0.0010855]
[1736065019937,0.17859553,97953.0,97952.0,8.55e-05]
[1736065020242,0.27254911,97953.0,97952.0,8.55e-05]
[1736065020667,0.26954911,97953.0,97952.0,8.55e-05]
[1736065021116,0.27254911,97953.0,97952.0,8.55e-05]
[1736065021318,0.27254911,97953.0,97952.0,0.0010855]
[1736065021521,0.28154911,97953.0,97952.0,0.0010855]
[1736065024598,0.19059553,97953.0,97952.0,0.0010855]
[1736065025777,0.32698648,97953.0,97952.0,0.0010855]
[1736065027901,0.33698227,97953.0,97952.0,0.0010855]
[1736065029040,0.44096859,97953.0,97952.0,0.0010855]
[1736065029667,0.30453764,97953.0,97952.0,0.0010855]
[1736065031267,0.64033208,97953.0,97952.0,0.0010855]
[1736065032289,0.53194097,97953.0,97952.0,0.0010855]
[1736065033456,0.74033208,97953.0,97952.0,0.0010855]
[1736065033662,0.74443208,97953.0,97952.0,0.0010855]
[1736065033876,0.8714184,97953.0,97952.0,5e-07]
[1736065034082,0.76743208,97953.0,97952.0,5e-07]
[1736065034488,0.86743208,97953.0,97952.0,5e-07]
[1736065035318,0.1,97947.0,97946.0,8.55e-05]
[1736065035533,0.43647312,97947.0,97946.0,8.55e-05]
[1736065035950,0.4554429,97947.0,97946.0,8.55e-05]
[1736065036153,0.55942922,97947.0,97946.0,8.55e-05]
[1736065036763,0.4554429,97947.0,97946.0,8.55e-05]
[1736065037502,0.79123734,97947.0,97946.0,8.55e-05]
[1736065037701,0.90633734,97947.0,97946.0,0.0010855]
[1736065037913,0.93788742,97947.0,97946.0,0.0010855]
[1736065038337,0.92688742,97947.0,97946.0,8.55e-05]
[1736065038548,1.03087374,97947.0,97946.0,8.55e-05]
[1736065038753,1.03987374,97947.0,97946.0,0.0010855]
[1736065038959,1.03087374,97947.0,97946.0,8.55e-05]
[1736065039174,1.33453667,97947.0,97946.0,8.55e-05]
[1736065039375,1.34353667,97947.0,97946.0,0.0010855]
[1736065039584,0.35,97940.0,97939.0,8.55e-05]
[1736065039719,0.68119232,97940.0,97939.0,8.55e-05]
[1736065039924,0.7001621,97940.0,97939.0,8.55e-05]
[1736065041122,0.7091621,97940.0,97939.0,8.55e-05]
[1736065041473,0.7151621,97940.0,97939.0,8.55e-05]
[1736065041859,1.05095654,97940.0,97939.0,8.55e-05]
[1736065042491,1.15494286,97940.0,97939.0,8.55e-05]
[1736065043263,1.16512362,97940.0,97939.0,8.55e-05]
[1736065043477,1.16512362,97940.0,97890.0,0.0148832]
[1736065043478,0.25,97925.0,97890.0,0.0148832]
[1736065043678,0.55822332,97925.0,97920.0,0.07775]
[1736065043878,0.46538332,97925.0,97920.0,0.07775]
[1736065044107,0.354237,97925.0,97920.0,0.07775]
[1736065044316,0.37320678,97925.0,97924.0,0.076602]
[1736065044713,0.72100122,97925.0,97924.0,0.076602]
[1736065044964,0.71200122,97925.0,97924.0,0.076602]
[1736065045353,0.72100122,97925.0,97924.0,0.076602]
[1736065045899,0.38220678,97925.0,97924.0,0.076602]
[1736065046737,0.38520678,97925.0,97924.0,0.076602]
[1736065047215,0.39020678,97925.0,97924.0,0.076602]
[1736065047359,0.37320678,97925.0,97924.0,0.076602]
[1736065047559,0.37620678,97925.0,97924.0,0.076602]
[1736065047763,0.02996978,97925.0,97924.0,0.125402]
[1736065047967,0.02196978,97925.0,97924.0,0.125402]
[1736065048162,0.02196978,97925.0,97924.0,0.13296321]
[1736065048444,0.011,97925.0,97924.0,0.13296321]
[1736065048833,0.003,97925.0,97924.0,0.13296321]
[1736065049033,0.15,97927.0,97925.0,0.0765]
[1736065049660,0.15,97927.0,97926.0,0.08405694]
[1736065050291,0.151,97927.0,97926.0,0.08405694]
[1736065051349,0.15,97927.0,97926.0,0.08405694]
[1736065051765,0.154,97927.0,97926.0,0.08405694]
[1736065051971,0.15,97927.0,97926.0,0.08405694]
[1736065052435,0.154,97927.0,97926.0,0.08405694]
[1736065052637,0.155,97927.0,97926.0,0.08405694]
[1736065052840,0.17390412,97927.0,97926.0,0.08405694]
[1736065053047,0.17290412,97927.0,97926.0,0.08405694]
[1736065053443,0.17390412,97927.0,97926.0,0.08405694]
[1736065054028,0.16890412,97927.0,97926.0,0.08405694]
[1736065054440,0.17290412,97927.0,97926.0,0.08405694]
[1736065056102,0.17390412,97927.0,97926.0,0.08405694]
[1736065064654,0.27789044,97927.0,97926.0,0.08405694]
[1736065065056,0.27789044,97927.0,97924.0,0.048902]
[1736065065262,0.30822132,97926.0,97924.0,0.048902]
[1736065065468,0.15,97925.0,97924.0,0.000102]
[1736065065671,0.25398632,97925.0,97924.0,0.000102]
[1736065065874,0.27289044,97925.0,97924.0,0.000102]
[1736065067187,0.36358435,97925.0,97924.0,0.000102]
[1736065068101,0.37158435,97925.0,97924.0,0.000102]
[1736065068345,0.36358435,97925.0,97924.0,0.000102]
[1736065068579,0.78940701,97925.0,97924.0,0.000102]
[1736065068797,0.79140701,97925.0,97924.0,0.000102]
[1736065069278,0.15,97923.0,97920.0,0.00125]
[1736065069479,0.30823032,97922.0,97920.0,0.00125]
[1736065069883,0.32713444,97922.0,97920.0,0.00125]
[1736065070508,0.32762883,97922.0,97920.0,0.00125]
[1736065070710,0.01890412,97921.0,97920.0,0.00125]
[1736065070920,0.12289044,97921.0,97920.0,0.00125]
[1736065071126,0.31057686,97921.0,97920.0,0.00125]
[1736065071342,0.53357686,97921.0,97920.0,0.00125]
[1736065071567,0.49589044,97921.0,97920.0,0.00125]
[1736065071993,0.52617546,97921.0,97920.0,0.00125]
[1736065072409,0.373,97915.0,97914.0,0.1000854]
[1736065072658,0.50853482,97915.0,97914.0,0.1000854]
[1736065072864,0.47698632,97915.0,97914.0,0.1000854]
[1736065073270,0.49590457,97915.0,97914.0,0.1000854]
[1736065073516,0.28014457,97915.0,97914.0,0.1000854]
[1736065073692,0.61528328,97915.0,97914.0,0.1000854]
[1736065073953,0.73843098,97915.0,97914.0,0.1000854]
[1736065074159,0.82943098,97915.0,97914.0,0.1000854]
[1736065074370,0.85018801,97915.0,97914.0,0.1000854]
[1736065074585,0.85918801,97915.0,97914.0,0.1000854]
[1736065074794,0.85018801,97915.0,97914.0,0.1000854]
[1736065075030,0.977038,97915.0,97914.0,0.1000854]
[1736065075209,1.073038,97915.0,97914.0,0.1000854]
[1736065075643,1.078038,97915.0,97914.0,0.1010854]
[1736065076297,0.84618801,97915.0,97914.0,0.1000854]
[1736065076528,0.85118801,97915.0,97914.0,0.1010854]
[1736065076742,0.88318801,97915.0,97914.0,0.1010854]
[1736065077603,0.86694801,97915.0,97914.0,0.1010854]
[1736065077808,0.88318801,97915.0,97914.0,0.1010854]
[1736065078363,0.94597832,97915.0,97914.0,0.1010854]
[1736065079936,0.94597832,97915.0,97914.0,0.0602334]
[1736065080138,0.2,97910.0,97900.0,8.54e-05]
[1736065080342,0.47698632,97910.0,97900.0,8.54e-05]
[1736065080566,0.49590457,97910.0,97900.0,8.54e-05]
[1736065080767,0.50314457,97910.0,97900.0,8.54e-05]
[1736065081299,0.51214457,97910.0,97900.0,8.54e-05]
[1736065082318,0.51214457,97910.0,97865.0,0.00102161]
[1736065082319,0.1,97895.0,97873.0,0.0762]
[1736065082552,0.1,97891.0,97873.0,0.0762]
[1736065082834,0.37698632,97891.0,97873.0,0.0762]
[1736065083048,0.58129432,97891.0,97873.0,0.0762]
[1736065083264,0.58129432,97891.0,97869.0,0.0496]
[1736065083265,0.25,97890.0,97889.0,6e-07]
[1736065083482,0.36122632,97890.0,97889.0,6e-07]
[1736065083810,0.36172041,97890.0,97889.0,6e-07]
[1736065084008,0.48063866,97890.0,97889.0,6e-07]
[1736065084206,0.27339866,97890.0,97889.0,6e-07]
[1736065084392,0.29983889,97890.0,97889.0,6e-07]
[1736065084772,0.29083889,97890.0,97889.0,6e-07]
[1736065084975,0.28359889,97890.0,97889.0,6e-07]
[1736065085175,0.29259889,97890.0,97889.0,6e-07]
[1736065085405,0.52856816,97890.0,97889.0,6e-07]
[1736065085759,0.42856816,97890.0,97889.0,6e-07]
[1736065085956,0.37856816,97890.0,97879.0,0.0811854]
[1736065086185,0.3742204,97889.0,97879.0,0.0811854]
[1736065086406,0.25394632,97889.0,97879.0,0.0811854]
[1736065086750,0.27286457,97889.0,97879.0,0.0811854]
[1736065087164,0.354331,97880.0,97879.0,0.0811854]
[1736065087784,0.37324925,97880.0,97879.0,0.0811854]
[1736065087983,0.47723557,97880.0,97879.0,0.0811854]
[1736065088400,0.47723557,97880.0,97879.0,8.54e-05]
[1736065089615,0.48023557,97880.0,97879.0,8.54e-05]
[1736065089821,0.60323557,97880.0,97879.0,8.54e-05]
[1736065090018,0.61223557,97880.0,97879.0,8.54e-05]
[1736065090243,0.60923557,97880.0,97879.0,8.54e-05]
[1736065090447,0.61223557,97880.0,97879.0,8.54e-05]
[1736065091030,0.61685472,97880.0,97879.0,8.54e-05]
[1736065091218,0.61079189,97880.0,97879.0,8.54e-05]
[1736065091580,0.62703189,97880.0,97879.0,8.54e-05]
[1736065091797,0.61979189,97880.0,97879.0,8.54e-05]
[1736065092008,0.62703189,97880.0,97879.0,8.54e-05]
[1736065092179,0.62403189,97880.0,97879.0,8.54e-05]
[1736065092957,0.62903189,97880.0,97879.0,0.0010854]
[1736065093410,0.62003189,97880.0,97879.0,0.0010854]
[1736065093810,0.49123557,97880.0,97879.0,0.1305854]
[1736065094136,0.48223557,97880.0,97879.0,0.13803756]
[1736065094273,0.37824925,97880.0,97879.0,0.13803756]
[1736065094476,0.38724925,97880.0,97879.0,0.13803756]
[1736065094683,0.37824925,97880.0,97879.0,0.1305854]
[1736065095078,0.38224925,97880.0,97879.0,0.13775909]
[1736065095281,0.37324925,97880.0,97879.0,0.13775909]
[1736065095496,0.004,97880.0,97879.0,0.13775909]
[1736065095695,0.004,97880.0,97879.0,0.1295854]
[1736065095895,0.15049409,97890.0,97881.0,0.1295]
[1736065096126,0.16938172,97890.0,97883.0,0.0484]
[1736065096327,0.16938172,97890.0,97884.0,0.0811]
[1736065096499,0.16938172,97890.0,97884.0,0.08925586]
[1736065096699,0.35480509,97890.0,97884.0,0.08925586]
[1736065097102,0.01889275,97889.0,97884.0,0.0811]
[1736065097309,0.15,97887.0,97884.0,0.0811]
[1736065097510,0.15,97887.0,97885.0,0.0081523]
[1736065097781,0.15,97887.0,97884.0,0.0811]
[1736065098368,0.45830532,97886.0,97885.0,0.0081523]
[1736065098581,0.354319,97886.0,97885.0,0.0081523]
[1736065098769,0.15,97885.0,97884.0,0.0811]
[1736065099427,0.15,97885.0,97884.0,0.08925586]
[1736065099786,0.001,97886.0,97884.0,0.08925586]
[1736065099979,0.15,97889.0,97884.0,0.08925586]
[1736065100189,0.005,97886.0,97885.0,0.1295]
[1736065100389,0.15,97889.0,97885.0,0.1376523]
[1736065100571,0.15,97889.0,97886.0,0.1295]
[1736065100771,0.00049409,97890.0,97887.0,0.08924517]
[1736065101103,0.00049409,97890.0,97888.0,0.0484]
[1736065101306,0.14988109,97895.0,97889.0,0.0811]
[1736065101736,0.14988109,97895.0,97891.0,0.0811]
[1736065101951,0.01891565,97894.0,97891.0,0.0811]
[1736065102279,0.01891565,97894.0,97893.0,0.1295]
[1736065102993,0.0001708,97900.0,97893.0,0.00812379]
[1736065103193,0.002,97895.0,97894.0,0.252802]
[1736065103580,0.002,97895.0,97894.0,0.05662022]
[1736065103782,0.002,97895.0,97894.0,0.13442022]
[1736065104240,0.0001708,97900.0,97897.0,0.204296]
[1736065104445,0.0001708,97900.0,97898.0,0.0485]
[1736065104573,0.0001708,97900.0,97899.0,0.0778]
[1736065105000,0.02,97916.0,97900.0,0.20429]
[1736065105435,0.02,97916.0,97902.0,0.1263]
[1736065105679,0.02,97916.0,97910.0,0.1263]
[1736065105881,0.2043978,97931.0,97912.0,0.0778]
[1736065106305,0.204229,97929.0,97913.0,0.00804341]
[1736065106506,0.408459,97929.0,97914.0,0.0778]
[1736065107006,0.004,97916.0,97914.0,0.0778]
[1736065107211,0.408459,97929.0,97915.0,0.00803629]
[1736065107647,0.210229,97929.0,97914.0,0.0778]
[1736065107852,0.204231,97928.0,97914.0,0.0778]
[1736065108064,0.204245,97922.0,97914.0,0.0778]
[1736065108285,0.15,97915.0,97914.0,0.0778]
[1736065108701,0.15,97915.0,97914.0,0.08583985]
[1736065109332,0.001,97916.0,97914.0,0.08583985]
[1736065109563,0.15,97917.0,97914.0,0.08583985]
[1736065109768,0.15,97915.0,97914.0,0.0778]
[1736065109972,0.15,97915.0,97914.0,0.0788]
[1736065110387,0.151,97915.0,97914.0,0.0788]
[1736065110718,0.15,97915.0,97914.0,0.0788]
[1736065111127,0.153,97915.0,97914.0,0.0778]
[1736065111698,0.153,97915.0,97914.0,0.0788]
[1736065112112,0.153,97915.0,97914.0,0.0778]
[1736065112325,0.15,97915.0,97914.0,0.0778]
[1736065112925,0.151,97915.0,97914.0,0.0778]
[1736065113172,0.151,97915.0,97880.0,0.12023408]
[1736065113173,0.204282,97904.0,97900.0,0.0778]
[1736065113378,0.408564,97904.0,97900.0,0.0778]
[1736065113984,0.15,97903.0,97900.0,0.0778]
[1736065114216,0.204285,97902.0,97900.0,0.0778]
[1736065114760,0.15,97901.0,97894.0,0.0485]
[1736065114962,0.15,97899.0,97894.0,0.0485]
[1736065115186,0.15,97899.0,97891.0,0.0778]
[1736065115391,0.204306,97892.0,97891.0,0.0778]
[1736065116661,0.212306,97892.0,97891.0,0.0778]
[1736065116873,0.204306,97892.0,97891.0,0.0778]
[1736065117097,0.204294,97898.0,97891.0,0.0778]
[1736065117306,0.006,97892.0,97891.0,0.0778]
[1736065117833,0.008,97892.0,97891.0,0.0778]
[1736065118253,0.006,97892.0,97891.0,0.0778]
[1736065118667,0.001,97892.0,97891.0,0.0778]
[1736065119104,0.350297,97897.0,97891.0,0.0778]
[1736065119758,0.004,97892.0,97891.0,0.0778]
[1736065120700,0.204263,97913.0,97892.0,0.0485]
[1736065120912,0.204263,97913.0,97893.0,0.0778]
[1736065121112,0.204275,97907.0,97893.0,0.08591006]
[1736065121315,0.01887823,97908.0,97893.0,0.08591006]
[1736065121452,0.204264,97913.0,97893.0,0.08579674]
[1736065121644,0.15,97908.0,97893.0,0.08579674]
[1736065122003,0.15,97906.0,97893.0,0.08579674]
[1736065122907,0.15,97908.0,97893.0,0.21241306]
[1736065123274,0.157,97906.0,97893.0,0.00811006]
[1736065124104,0.15,97906.0,97893.0,0.00811006]
[1736065124522,0.15,97908.0,97894.0,0.0818]
[1736065124883,0.001,97906.0,97895.0,0.00677563]
[1736065125082,0.001,97906.0,97895.0,0.08857563]
[1736065125296,0.159,97906.0,97895.0,0.08857563]
[1736065125490,0.159,97906.0,97896.0,0.253698]
[1736065125692,0.002,97908.0,97898.0,0.0494]
[1736065125904,0.008,97908.0,97902.0,0.1312]
[1736065126100,0.008,97908.0,97903.0,0.0818]
[1736065126303,0.008,97908.0,97903.0,0.08854712]
[1736065126481,0.002,97906.0,97903.0,0.08854712]
[1736065126920,0.002,97908.0,97903.0,0.08854712]
[1736065127330,0.002,97908.0,97903.0,0.0818]
[1736065127539,0.204275,97907.0,97903.0,0.0818]
[1736065127763,0.204275,97907.0,97904.0,0.00674356]
[1736065128267,0.15,97910.0,97904.0,0.00674356]
[1736065128760,0.001,97906.0,97904.0,0.00674356]
[1736065129544,0.001,97906.0,97903.0,0.0818]
[1736065129700,0.204275,97907.0,97903.0,0.0818]
[1736065130103,0.204279,97905.0,97903.0,0.0818]
[1736065132015,0.15,97908.0,97903.0,0.0818]
[1736065132351,0.002,97906.0,97903.0,0.0818]
[1736065132578,0.0189268,97907.0,97903.0,0.0818]
[1736065132791,0.0189268,97907.0,97903.0,0.0828]
[1736065133010,0.002,97905.0,97903.0,0.0828]
[1736065133256,0.15,97908.0,97904.0,0.5]
[1736065133462,0.204275,97907.0,97904.0,0.5]
[1736065133665,0.002,97906.0,97904.0,0.50674356]
[1736065133837,0.15,97908.0,97904.0,0.50674356]
[1736065134069,0.204275,97907.0,97904.0,0.50674356]
[1736065134284,0.002,97905.0,97904.0,0.50674356]
[1736065135113,0.02092829,97905.0,97904.0,0.50674356]
[1736065135543,0.01892829,97905.0,97904.0,0.50674356]
[1736065136587,0.02192829,97905.0,97904.0,0.50674356]
[1736065136784,0.27291461,97905.0,97904.0,0.50674356]
[1736065137231,0.27691461,97905.0,97904.0,0.50674356]
[1736065137435,0.27691461,97905.0,97904.0,0.00674356]
[1736065137652,0.27291461,97905.0,97904.0,0.00674356]
[1736065137796,0.3543,97895.0,97894.0,0.0818]
[1736065138388,0.37322829,97895.0,97894.0,0.0818]
[1736065138729,0.15,97894.0,97893.0,8.54e-05]
[1736065139554,0.16892829,97894.0,97893.0,8.54e-05]
[1736065139909,0.01892829,97894.0,97893.0,8.54e-05]
[1736065140333,0.27291461,97894.0,97893.0,8.54e-05]
[1736065140765,0.27991461,97894.0,97893.0,8.54e-05]
[1736065141156,0.28191461,97894.0,97893.0,8.54e-05]
[1736065141350,0.40491461,97894.0,97893.0,8.54e-05]
[1736065141554,0.40291461,97894.0,97893.0,8.54e-05]
[1736065141908,0.304321,97885.0,97884.0,8.9e-07]
[1736065142113,0.58870732,97885.0,97884.0,8.088e-05]
[1736065142240,0.60763561,97885.0,97884.0,8.088e-05]
[1736065142453,0.1,97877.0,97871.0,0.00027922]
[1736065142655,0.354348,97872.0,97871.0,0.00027922]
[1736065142918,0.45833432,97872.0,97871.0,0.00027922]
[1736065143124,0.55833432,97872.0,97871.0,0.00027922]
[1736065143475,0.57726261,97872.0,97871.0,0.00027922]
[1736065144741,0.57826261,97872.0,97871.0,0.00027922]
[1736065145474,0.48526261,97872.0,97871.0,0.00027922]
[1736065145681,0.25,97862.0,97861.0,4e-07]
[1736065145898,0.1,97855.0,97841.0,8.55e-05]
[1736065146109,0.1,97849.0,97841.0,8.55e-05]
[1736065146281,0.1,97849.0,97822.0,8.54e-05]
[1736065146282,0.408864,97832.0,97822.0,8.54e-05]
[1736065146518,0.26138632,97831.0,97822.0,8.54e-05]
[1736065146687,0.15,97829.0,97822.0,8.54e-05]
[1736065146910,0.15,97827.0,97822.0,8.54e-05]
[1736065147122,0.25413434,97827.0,97822.0,8.54e-05]
[1736065147533,0.35413434,97827.0,97822.0,8.54e-05]
[1736065147686,0.36423267,97827.0,97822.0,8.54e-05]
[1736065147908,0.25409434,97827.0,97822.0,8.54e-05]
[1736065148092,0.00014802,97827.0,97822.0,8.54e-05]
[1736065149327,0.00814802,97827.0,97826.0,0.0780854]
[1736065149502,0.00014802,97827.0,97826.0,0.08416929]
[1736065149921,0.00514802,97827.0,97826.0,0.08416929]
[1736065150401,0.00714802,97827.0,97826.0,0.08416929]
[1736065150794,0.00514802,97827.0,97826.0,0.08416929]